fUSD/lending_fUSD_20250930
["ID","MTS","AMOUNT","RATE_DAILY","PERIOD"]
[388504924,1759222245222,-500.0,0.00019499,2]
[388504925,1759222245231,-1455.51,0.00019499,2]
[388504926,1759222245240,-568.29,0.00019499,2]
[388504927,1759222245249,-3610.17,0.00019499,2]
[388504928,1759222245258,-897.45,0.00019499,2]
[388504929,1759222245268,-3431.07,0.00019499,2]
[388504930,1759222245278,-3505.03,0.00019499,2]
[388504931,1759222245287,-538.74,0.00019499,2]
[388504932,1759222245298,-4213.52,0.00019499,2]
[388504933,1759222245307,-2781.56,0.00019499,2]
[388504934,1759222245316,-2553.15,0.00019499,2]
[388504935,1759222245325,-500.0,0.00019499,2]
[388504936,1759222245334,-5709.31,0.00019499,2]
[388504937,1759222245343,-500.0,0.00019499,2]
[388504938,1759222245353,-934.11,0.00019499,2]
[388504939,1759222245363,-5075.04,0.00019499,2]
[388504940,1759222245372,-3479.36,0.00019499,2]
[388504941,1759222245382,-3568.36,0.00019499,2]
[388504942,1759222245392,-5643.91,0.00019499,2]
[388504943,1759222245401,-3825.48,0.00019499,2]
[388504944,1759222245410,-500.0,0.00019499,2]
[388504945,1759222245419,-1951.15,0.00019499,2]
[388504946,1759222245428,-2405.34,0.00019499,2]
[388504947,1759222245437,-3690.27,0.00019499,2]
[388504948,1759222245446,-888.77,0.00019499,2]
[388504949,1759222245456,-2917.77,0.00019499,2]
[388504950,1759222245465,-3500.58,0.00019499,2]
[388504951,1759222245475,-3767.82,0.00019499,2]
[388504952,1759222245484,-3628.14,0.00019499,2]
[388504953,1759222245493,-4694.09,0.00019499,2]
[388504954,1759222245503,-1074.93,0.00019499,2]
[388504955,1759222245514,-2728.25,0.00019499,2]
[388504956,1759222245523,-500.0,0.00019499,2]
[388504957,1759222245532,-2812.54,0.00019499,2]
[388504958,1759222245542,-976.54,0.00019499,2]
[388504959,1759222245553,-3831.76,0.00019499,2]
[388504960,1759222245563,-1616.43,0.00019499,2]
[388504961,1759222245572,-500.0,0.00019499,2]
[388504962,1759222245582,-3888.72,0.00019499,2]
[388504963,1759222245591,-4280.39,0.00019499,2]
[388504964,1759222245601,-500.0,0.00019499,2]
[388504965,1759222245610,-2383.66,0.00019499,2]
[388504966,1759222245619,-866.75,0.00019499,2]
[388504967,1759222245630,-500.0,0.00019499,2]
[388504968,1759222245640,-2826.1,0.00019499,2]
[388504969,1759222245650,-1850.54,0.00019499,2]
[388504970,1759222245660,-1044.74,0.00019499,2]
[388504971,1759222245669,-420.0,0.00019499,2]
[388504972,1759222245679,-654.86,0.00019499,2]
[388504973,1759222245688,-1459.72,0.00019499,2]
[388504974,1759222245698,-533.4,0.00019499,2]
[388504975,1759222245707,-1156.97,0.00019499,2]
[388504976,1759222245717,-500.0,0.00019499,2]
[388504977,1759222245727,-525.44,0.00019499,2]
[388504978,1759222245740,-1125.9,0.00019499,2]
[388504979,1759222245750,-1000.0,0.000195,7]
[388504980,1759222245760,-1931.35776489,0.00019507,2]
[388504981,1759222245769,-3080.41267582,0.00019508,2]
[388504982,1759222245782,-1931.35776489,0.00019563,2]
[388504983,1759222245791,-3080.41267582,0.00019564,2]
[388504984,1759222245801,-300.0,0.00019589,2]
[388504985,1759222245811,-195.0,0.00019589,2]
[388504986,1759222245821,-759.85850327,0.00019589,2]
[388504987,1759222245830,-1680.0,0.00019595,2]
[388504988,1759222245839,-1300.0,0.000196,7]
[388504989,1759222245849,-1931.35776489,0.00019619,2]
[388504991,1759222245860,-3080.41267582,0.0001962,2]
[388504993,1759222245869,-151.0,0.00019634,2]
[388504995,1759222245881,-1795.642683,0.00019672,2]
[388504997,1759222245891,-3534.50822808,0.00019672,2]
[388504999,1759222245900,-1931.35776489,0.00019676,2]
[388505001,1759222245911,-3080.41267582,0.00019676,2]
[388505003,1759222245920,-1700.0,0.000197,7]
[388505005,1759222245930,-686.0,0.00019709,2]
[388505007,1759222245939,-156.587,0.00019726,2]
[388505009,1759222245948,-1931.35776489,0.00019732,2]
[388505011,1759222245958,-3080.41267582,0.00019732,2]
[388505013,1759222245967,-496.0,0.0001975,2]
[388505015,1759222245976,-590.79,0.00019769,2]
[388505016,1759222245986,-1046.22,0.00019769,2]
[388505017,1759222245995,-500.0,0.00019769,2]
[388505018,1759222246005,-1422.19,0.00019769,2]
[388505019,1759222246015,-500.0,0.00019769,2]
[388505020,1759222246024,-934.65,0.00019769,2]
[388505021,1759222246033,-500.0,0.00019769,2]
[388505022,1759222246042,-500.0,0.00019769,2]
[388505023,1759222246051,-500.0,0.00019769,2]
[388505024,1759222246061,-300.32885979,0.00019769,2]
[388505025,1759222246071,-4998.56,0.00019769,2]
[388505026,1759222246080,-2434.81,0.00019769,2]
[388505027,1759222246089,-500.0,0.00019769,2]
[388505028,1759222246099,-8899.88,0.00019769,2]
[388505029,1759222246108,-3534.82,0.00019769,2]
[388505030,1759222246118,-500.0,0.00019769,2]
[388505031,1759222246127,-1602.17,0.00019769,2]
[388505032,1759222246136,-503.97,0.00019769,2]
[388505033,1759222246146,-1860.12,0.00019769,2]
[388505034,1759222246156,-500.0,0.00019769,2]
[388505035,1759222246165,-2558.4,0.00019769,2]
[388505036,1759222246175,-5036.96,0.00019769,2]
[388505037,1759222246184,-1506.06,0.00019769,2]
[388505038,1759222246194,-1084.66,0.00019769,2]
[388505039,1759222246203,-2983.19,0.00019769,2]
[388505041,1759222246212,-543.32,0.00019769,2]
[388505042,1759222246221,-3299.01,0.00019769,2]
[388505043,1759222246229,-500.0,0.00019769,2]
[388505044,1759222246238,-698.43,0.00019769,2]
[388505045,1759222246249,-1442.51,0.00019769,2]
[388505046,1759222246258,-2037.36,0.00019769,2]
[388505047,1759222246267,-3143.47,0.00019769,2]
[388505048,1759222246277,-3207.06,0.00019769,2]
[388505049,1759222246287,-7437.31,0.00019769,2]
[388505050,1759222246296,-1872.59,0.00019769,2]
[388505051,1759222246305,-2031.05,0.00019769,2]
[388505052,1759222246315,-500.0,0.00019769,2]
[388505053,1759222246327,-500.0,0.00019769,2]
[388505054,1759222246337,-500.0,0.00019769,2]
[388505055,1759222246349,-10922.41,0.00019769,2]
[388505056,1759222246358,-500.0,0.00019769,2]
[388505057,1759222246367,-500.0,0.00019769,2]
[388505058,1759222246377,-4357.37,0.00019769,2]
[388505059,1759222246386,-764.39,0.00019769,2]
[388505060,1759222246396,-2077.78,0.00019769,2]
[388505061,1759222246405,-500.0,0.00019769,2]
[388505062,1759222246414,-1853.91,0.00019769,2]
[388505063,1759222246423,-1171.79,0.00019769,2]
[388505064,1759222246432,-565.92,0.00019769,2]
[388505065,1759222246443,-2922.13,0.00019769,2]
[388505066,1759222246452,-1423.65,0.00019769,2]
[388505067,1759222246462,-500.0,0.00019769,2]
[388505068,1759222246472,-4736.29,0.00019769,2]
[388505069,1759222246481,-1116.63,0.00019769,2]
[388505070,1759222246491,-151.0,0.0001977,2]
[388505071,1759222246500,-500.0,0.0001977,2]
[388505072,1759222246510,-751.9,0.0001977,2]
[388505073,1759222246519,-751.9,0.0001977,2]
[388505074,1759222246529,-3282.82,0.0001977,2]
[388505075,1759222246539,-500.0,0.0001977,2]
[388505076,1759222246548,-2049.13,0.0001977,2]
[388505077,1759222246557,-1047.87,0.0001977,2]
[388505078,1759222246566,-510.05,0.0001977,2]
[388505079,1759222246575,-500.0,0.0001977,2]
[388505080,1759222246585,-500.0,0.0001977,2]
[388505081,1759222246595,-524.96,0.0001977,2]
[388505082,1759222246604,-471.8084698,0.0001977,2]
[388505083,1759222246613,-2397.6,0.0001977,2]
[388505084,1759222246623,-541.83,0.0001977,2]
[388505085,1759222246634,-590.79,0.0001977,2]
[388505086,1759222246645,-1108.51,0.0001977,2]
[388505087,1759222246654,-4894.15,0.0001977,2]
[388505088,1759222246664,-500.0,0.0001977,2]
[388505089,1759222246673,-513.73,0.0001977,2]
[388505090,1759222246682,-1528.07,0.0001977,2]
[388505091,1759222246692,-17233.93,0.0001977,2]
[388505092,1759222246702,-657.01,0.0001977,2]
[388505093,1759222246712,-500.0,0.0001977,2]
[388505094,1759222246721,-500.0,0.0001977,2]
[388505095,1759222246735,-698.04,0.0001977,2]
[388505096,1759222246749,-505.75,0.0001977,2]
[388505097,1759222246759,-866.99,0.0001977,2]
[388505098,1759222246770,-1025.16,0.0001977,2]
[388505099,1759222246780,-500.0,0.0001977,2]
[388505100,1759222246789,-661.14,0.0001977,2]
[388505101,1759222246798,-1024.57,0.0001977,2]
[388505102,1759222246826,-950.24,0.0001977,2]
[388505103,1759222246839,-5412.08,0.0001977,2]
[388505104,1759222246849,-2213.75,0.0001977,2]
[388505105,1759222246859,-500.0,0.0001977,2]
[388505106,1759222246870,-2013.41,0.0001977,2]
[388505107,1759222246881,-2802.06,0.0001977,2]
[388505108,1759222246891,-1671.35,0.0001977,2]
[388505109,1759222246901,-5671.22,0.0001977,2]
[388505110,1759222246912,-738.53,0.0001977,2]
[388505111,1759222246922,-925.19,0.0001977,2]
[388505112,1759222246932,-500.0,0.0001977,2]
[388505113,1759222246942,-500.0,0.0001977,2]
[388505114,1759222246952,-4496.96,0.0001977,2]
[388505115,1759222246963,-1431.66,0.0001977,2]
[388505116,1759222246973,-13320.92,0.0001977,2]
[388505117,1759222246983,-500.0,0.0001977,2]
[388505118,1759222246995,-11054.141627,0.0001977,2]
[388505119,1759222247005,-526.741572,0.0001977,2]
[388505120,1759222247015,-532.878419,0.0001977,2]
[388505121,1759222247026,-500.0,0.0001977,2]
[388505122,1759222247036,-5298.050883,0.0001977,2]
[388505123,1759222247046,-408.514422,0.0001977,2]
[388505124,1759222247057,-517.44,0.0001977,2]
[388505125,1759222247067,-9380.712369,0.0001977,2]
[388505126,1759222247076,-1909.61,0.0001977,2]
[388505127,1759222247086,-1009.2,0.0001977,2]
[388505128,1759222247096,-611.05,0.0001977,2]
[388505129,1759222247106,-1016.41,0.0001977,2]
[388505130,1759222247118,-500.0,0.0001977,2]
[388505131,1759222247129,-3491.72,0.0001977,2]
[388505132,1759222247140,-500.0,0.0001977,2]
[388505133,1759222247151,-500.0,0.0001977,2]
[388505134,1759222247161,-1155.6,0.0001977,2]
[388505135,1759222247171,-4328.41,0.0001977,2]
[388505136,1759222247181,-574.32,0.0001977,2]
[388505137,1759222247191,-4329.8,0.0001977,2]
[388505138,1759222247208,-500.0,0.0001977,2]
[388505139,1759222247219,-524.97,0.0001977,2]
[388505140,1759222247230,-600.75209219,0.0001977,2]
[388505141,1759222247240,-500.0,0.0001977,2]
[388505142,1759222247250,-6768.32,0.0001977,2]
[388505143,1759222247260,-608.20951739,0.0001977,2]
[388505144,1759222247271,-500.0,0.0001977,2]
[388505145,1759222247281,-500.0,0.0001977,2]
[388505146,1759222247291,-500.0,0.0001977,2]
[388505147,1759222247302,-1255.46,0.0001977,2]
[388505148,1759222247312,-2215.98,0.0001977,2]
[388505149,1759222247322,-500.0,0.0001977,2]
[388505150,1759222247333,-4731.37,0.0001977,2]
[388505151,1759222247342,-1096.15,0.0001977,2]
[388505152,1759222247353,-1507.87,0.0001977,2]
[388505153,1759222247934,-500.0,0.0001977,2]
[388505154,1759222247952,-597.53,0.0001977,2]
[388505155,1759222247962,-6116.44,0.0001977,2]
[388505156,1759222247971,-4432.02,0.0001977,2]
[388505157,1759222247980,-500.0,0.0001977,2]
[388505158,1759222247990,-9742.34,0.0001977,2]
[388505159,1759222247999,-500.0,0.0001977,2]
[388505160,1759222248008,-743.79,0.0001977,2]
[388505161,1759222248017,-4554.23,0.0001977,2]
[388505162,1759222248026,-500.0,0.0001977,2]
[388505163,1759222248036,-22676.94,0.0001977,2]
[388505164,1759222248045,-500.0,0.0001977,2]
[388505165,1759222248062,-2281.66,0.0001977,2]
[388505166,1759222248073,-500.0,0.0001977,2]
[388505167,1759222248083,-500.0,0.0001977,2]
[388505168,1759222248093,-1347.16,0.0001977,2]
[388505169,1759222248104,-500.0,0.0001977,2]
[388505170,1759222248115,-500.0,0.0001977,2]
[388505171,1759222248126,-3917.05,0.0001977,2]
[388505172,1759222248137,-8437.68,0.0001977,2]
[388505173,1759222248148,-500.0,0.0001977,2]
[388505174,1759222248159,-500.0,0.0001977,2]
[388505175,1759222248169,-500.0,0.0001977,2]
[388505176,1759222248181,-500.0,0.0001977,2]
[388505177,1759222248192,-1294.39,0.0001977,2]
[388505178,1759222248202,-500.0,0.0001977,2]
[388505179,1759222248213,-7445.48,0.0001977,2]
[388505180,1759222248223,-2092.7,0.0001977,2]
[388505181,1759222248234,-500.0,0.0001977,2]
[388505182,1759222248245,-3497.09,0.0001977,2]
[388505183,1759222248256,-879.95,0.0001977,2]
[388505184,1759222248267,-580.67,0.0001977,2]
[388505185,1759222248278,-500.0,0.0001977,2]
[388505186,1759222248288,-1148.39,0.0001977,2]
[388505187,1759222248298,-1966.99,0.0001977,2]
[388505188,1759222248309,-1733.89,0.0001977,2]
[388505189,1759222248319,-529.81573756,0.0001977,2]
[388505190,1759222248330,-661.28,0.0001977,2]
[388505191,1759222248340,-1278.65,0.0001977,2]
[388505192,1759222248350,-500.0,0.0001977,2]
[388505193,1759222248361,-6099.28,0.0001977,2]
[388505194,1759222248374,-1277.86,0.0001977,2]
[388505195,1759222248384,-1527.18,0.0001977,2]
[388505196,1759222248394,-740.9,0.0001977,2]
[388505197,1759222248404,-500.0,0.0001977,2]
[388505198,1759222248414,-1423.79,0.0001977,2]
[388505199,1759222248425,-1363.03,0.0001977,2]
[388505200,1759222248436,-686.8,0.0001977,2]
[388505201,1759222248453,-988.28,0.0001977,2]
[388505203,1759222248465,-4563.86,0.0001977,2]
[388505204,1759222248477,-7199.64,0.0001977,2]
[388505206,1759222248488,-1522.74,0.0001977,2]
[388505207,1759222248499,-549.21,0.0001977,2]
[388505208,1759222248511,-500.0,0.0001977,2]
[388505209,1759222248522,-500.0,0.0001977,2]
[388505210,1759222248532,-3035.77,0.0001977,2]
[388505211,1759222248543,-522.74,0.0001977,2]
[388505212,1759222248554,-7141.69,0.0001977,2]
[388505213,1759222248564,-500.0,0.0001977,2]
[388505214,1759222248575,-500.0,0.0001977,2]
[388505215,1759222248586,-1605.52,0.0001977,2]
[388505216,1759222248597,-500.0,0.0001977,2]
[388505217,1759222248609,-500.0,0.0001977,2]
[388505218,1759222248620,-3531.01,0.0001977,2]
[388505219,1759222248631,-500.0,0.0001977,2]
[388505220,1759222248642,-3012.53,0.0001977,2]
[388505221,1759222248653,-156.51699929,0.0001977,2]
[388505222,1759222248664,-1199.9,0.0001977,2]
[388505223,1759222248675,-500.0,0.0001977,2]
[388505224,1759222248686,-500.0,0.0001977,2]
[388505225,1759222248696,-1507.42,0.0001977,2]
[388505226,1759222248707,-7626.0,0.0001977,2]
[388505227,1759222248718,-500.0,0.0001977,2]
[388505228,1759222248730,-500.0,0.0001977,2]
[388505229,1759222248744,-1906.23,0.0001977,2]
[388505230,1759222248755,-501.43,0.0001977,2]
[388505231,1759222248766,-500.0,0.0001977,2]
[388505232,1759222248778,-1067.89,0.0001977,2]
[388505233,1759222248789,-979.93,0.0001977,2]
[388505234,1759222248800,-500.0,0.0001977,2]
[388505235,1759222248812,-9207.51,0.0001977,2]
[388505236,1759222248822,-1665.15,0.0001977,2]
[388505237,1759222248833,-823.09,0.0001977,2]
[388505238,1759222248848,-166.29,0.0001977,2]
[388505239,1759222248859,-903.06,0.0001977,2]
[388505240,1759222248869,-6534.64,0.0001977,2]
[388505241,1759222248883,-5156.5,0.0001977,2]
[388505242,1759222248894,-984.54,0.00019771,2]
[388505243,1759222248905,-4303.93,0.00019771,2]
[388505244,1759222248915,-500.0,0.00019771,2]
[388505245,1759222248926,-500.0,0.00019771,2]
[388505246,1759222248936,-500.0,0.00019771,2]
[388505247,1759222248947,-1042.25,0.00019771,2]
[388505248,1759222248959,-6045.07,0.00019771,2]
[388505249,1759222248970,-500.0,0.00019771,2]
[388505250,1759222248980,-500.0,0.00019771,2]
[388505251,1759222248991,-523.53,0.00019771,2]
[388505252,1759222249002,-500.0,0.00019771,2]
[388505253,1759222249013,-500.0,0.00019771,2]
[388505254,1759222249024,-361.3289411,0.00019771,2]
[388505255,1759222249035,-4202.63,0.00019771,2]
[388505256,1759222249046,-500.0,0.00019771,2]
[388505257,1759222249056,-950.89,0.00019771,2]
[388505258,1759222249067,-1433.5,0.00019771,2]
[388505259,1759222249078,-2475.84,0.00019771,2]
[388505260,1759222249088,-500.0,0.00019771,2]
[388505261,1759222249098,-500.0,0.00019771,2]
[388505262,1759222249109,-2787.97,0.00019771,2]
[388505263,1759222249119,-500.0,0.00019771,2]
[388505264,1759222249131,-1143.1,0.00019771,2]
[388505265,1759222249143,-500.0,0.00019771,2]
[388505266,1759222249155,-758.56,0.00019771,2]
[388505267,1759222249166,-869.89,0.00019771,2]
[388505268,1759222249177,-651.1,0.00019771,2]
[388505269,1759222249188,-5658.82,0.00019771,2]
[388505270,1759222249198,-500.0,0.00019771,2]
[388505271,1759222249209,-500.0,0.00019771,2]
[388505272,1759222249220,-1205.28,0.00019771,2]
[388505273,1759222249230,-2411.04,0.00019771,2]
[388505274,1759222249240,-500.0,0.00019771,2]
[388505275,1759222249251,-1524.92,0.00019771,2]
[388505276,1759222249262,-5786.61,0.00019771,2]
[388505277,1759222249272,-500.0,0.00019771,2]
[388505278,1759222249282,-7147.62,0.00019771,2]
[388505279,1759222249293,-756.06,0.00019771,2]
[388505280,1759222249303,-3174.79,0.00019771,2]
[388505281,1759222249314,-3468.76,0.00019771,2]
[388505282,1759222249324,-500.0,0.00019771,2]
[388505283,1759222249334,-1869.71,0.00019771,2]
[388505284,1759222249344,-500.0,0.00019771,2]
[388505285,1759222249355,-550.75,0.00019771,2]
[388505286,1759222249365,-500.0,0.00019771,2]
[388505287,1759222249375,-500.0,0.00019771,2]
[388505288,1759222249387,-5115.82,0.00019771,2]
[388505289,1759222249397,-500.0,0.00019771,2]
[388505290,1759222249408,-6151.52,0.00019771,2]
[388505291,1759222249419,-439.76087734,0.00019771,2]
[388505292,1759222249431,-2703.95,0.00019771,2]
[388505293,1759222249441,-500.0,0.00019771,2]
[388505294,1759222249451,-500.0,0.00019771,2]
[388505295,1759222249462,-3899.28,0.00019771,2]
[388505296,1759222249472,-500.0,0.00019771,2]
[388505297,1759222249482,-500.0,0.00019771,2]
[388505298,1759222249493,-5186.88,0.00019771,2]
[388505299,1759222249503,-3190.7,0.00019771,2]
[388505300,1759222249514,-500.0,0.00019771,2]
[388505301,1759222249524,-500.0,0.00019771,2]
[388505302,1759222249535,-1861.01,0.00019771,2]
[388505303,1759222249546,-500.0,0.00019771,2]
[388505304,1759222249556,-4736.43,0.00019771,2]
[388505305,1759222249567,-500.0,0.00019771,2]
[388505306,1759222249577,-662.65,0.00019771,2]
[388505307,1759222249590,-500.0,0.00019771,2]
[388505308,1759222249600,-4747.81,0.00019771,2]
[388505309,1759222249611,-574.65,0.00019771,2]
[388505310,1759222249621,-190.78486717,0.00019771,2]
[388505311,1759222249633,-501.83,0.00019771,2]
[388505312,1759222249644,-500.0,0.00019771,2]
[388505313,1759222249655,-500.0,0.00019771,2]
[388505314,1759222249665,-2906.85,0.00019771,2]
[388505315,1759222249675,-500.0,0.00019771,2]
[388505316,1759222249686,-5177.61,0.00019771,2]
[388505317,1759222249697,-500.0,0.00019771,2]
[388505318,1759222249707,-3110.88,0.00019771,2]
[388505319,1759222249718,-522.15,0.00019771,2]
[388505320,1759222249728,-500.0,0.00019771,2]
[388505321,1759222249742,-684.3,0.00019771,2]
[388505322,1759222249753,-500.0,0.00019771,2]
[388505323,1759222249763,-276.24652305,0.00019771,2]
[388505324,1759222249774,-3755.97,0.00019771,2]
[388505325,1759222249784,-500.0,0.00019771,2]
[388505326,1759222249795,-500.0,0.00019771,2]
[388505327,1759222249805,-2229.67,0.00019771,2]
[388505328,1759222249815,-500.0,0.00019771,2]
[388505329,1759222249824,-2827.82,0.00019771,2]
[388505330,1759222249834,-500.0,0.00019771,2]
[388505331,1759222249844,-2686.47,0.00019771,2]
[388505332,1759222249855,-560.8,0.00019771,2]
[388505333,1759222249866,-500.0,0.00019771,2]
[388505334,1759222249876,-2272.49,0.00019771,2]
[388505335,1759222249888,-500.0,0.00019771,2]
[388505336,1759222249899,-500.0,0.00019771,2]
[388505337,1759222249909,-2110.25,0.00019771,2]
[388505338,1759222249920,-500.0,0.00019771,2]
[388505339,1759222249931,-4443.07,0.00019771,2]
[388505340,1759222249942,-500.0,0.00019771,2]
[388505341,1759222249952,-666.62,0.00019771,2]
[388505342,1759222249963,-500.0,0.00019771,2]
[388505343,1759222249973,-1316.62,0.00019771,2]
[388505344,1759222249984,-500.0,0.00019771,2]
[388505345,1759222249994,-500.0,0.00019771,2]
[388505346,1759222250003,-500.0,0.00019771,2]
[388505347,1759222250013,-500.0,0.00019771,2]
[388505348,1759222250023,-500.0,0.00019771,2]
[388505349,1759222250033,-500.0,0.00019771,2]
[388505350,1759222250043,-500.0,0.00019771,2]
[388505351,1759222250053,-1523.15,0.00019771,2]
[388505352,1759222250063,-500.0,0.00019771,2]
[388505353,1759222250074,-615.608788,0.00019771,2]
[388505354,1759222250083,-500.0,0.00019771,2]
[388505355,1759222250093,-500.0,0.00019771,2]
[388505356,1759222250103,-500.0,0.00019771,2]
[388505357,1759222250114,-500.0,0.00019771,2]
[388505358,1759222250123,-500.0,0.00019771,2]
[388505359,1759222250134,-1699.78,0.00019771,2]
[388505360,1759222250144,-3283.14,0.00019771,2]
[388505361,1759222250154,-500.0,0.00019771,2]
[388505362,1759222250164,-500.0,0.00019771,2]
[388505363,1759222250174,-1643.7,0.00019771,2]
[388505364,1759222250183,-500.0,0.00019771,2]
[388505365,1759222250193,-775.21,0.00019771,2]
[388505366,1759222250203,-500.0,0.00019771,2]
[388505367,1759222250213,-4262.1,0.00019771,2]
[388505368,1759222250223,-500.0,0.00019771,2]
[388505369,1759222250234,-500.0,0.00019771,2]
[388505370,1759222250243,-954.57,0.00019771,2]
[388505371,1759222250253,-500.0,0.00019771,2]
[388505372,1759222250263,-500.0,0.00019771,2]
[388505373,1759222250273,-1387.2,0.00019771,2]
[388505374,1759222250284,-3114.84,0.00019771,2]
[388505375,1759222250294,-500.0,0.00019771,2]
[388505376,1759222250304,-500.0,0.00019771,2]
[388505377,1759222250315,-500.0,0.00019771,2]
[388505378,1759222250324,-2232.44,0.00019771,2]
[388505379,1759222250334,-590.79,0.00019771,2]
[388505380,1759222250344,-500.0,0.00019771,2]
[388505381,1759222250354,-1224.05,0.00019771,2]
[388505382,1759222250364,-4606.34,0.00019771,2]
[388505383,1759222250374,-500.0,0.00019771,2]
[388505384,1759222250384,-500.0,0.00019771,2]
[388505385,1759222250395,-3106.54,0.00019771,2]
[388505386,1759222250404,-885.71,0.00019771,2]
[388505387,1759222250414,-500.0,0.00019771,2]
[388505388,1759222250423,-2716.14,0.00019771,2]
[388505389,1759222250433,-500.0,0.00019771,2]
[388505390,1759222250443,-1016.97,0.00019771,2]
[388505391,1759222250454,-500.0,0.00019771,2]
[388505392,1759222250463,-2552.03,0.00019771,2]
[388505393,1759222250473,-500.0,0.00019771,2]
[388505394,1759222250483,-5785.34,0.00019771,2]
[388505395,1759222250492,-500.0,0.00019771,2]
[388505396,1759222250502,-790.31,0.00019771,2]
[388505397,1759222250716,-500.0,0.00019771,2]
[388505398,1759222250726,-2771.18,0.00019771,2]
[388505399,1759222250737,-2737.0,0.00019771,2]
[388505400,1759222250748,-500.0,0.00019771,2]
[388505401,1759222250757,-500.0,0.00019771,2]
[388505402,1759222250766,-500.0,0.00019771,2]
[388505403,1759222250775,-500.0,0.00019771,2]
[388505404,1759222250784,-4211.29,0.00019771,2]
[388505405,1759222250794,-5092.42,0.00019771,2]
[388505406,1759222250803,-4630.26,0.00019771,2]
[388505407,1759222250815,-500.0,0.00019771,2]
[388505408,1759222250824,-4477.43,0.00019771,2]
[388505409,1759222250834,-241.5098038,0.00019771,2]
[388505410,1759222250843,-500.0,0.00019771,2]
[388505411,1759222250853,-4255.91,0.00019771,2]
[388505412,1759222250862,-500.0,0.00019771,2]
[388505413,1759222250871,-500.0,0.00019771,2]
[388505414,1759222250880,-4217.76,0.00019771,2]
[388505415,1759222250889,-2908.8,0.00019771,2]
[388505416,1759222250898,-3731.92,0.00019771,2]
[388505417,1759222250907,-500.0,0.00019771,2]
[388505418,1759222250916,-4283.91,0.00019771,2]
[388505419,1759222250926,-1024.23,0.00019771,2]
[388505420,1759222250935,-500.0,0.00019771,2]
[388505421,1759222250944,-422.70699142,0.00019771,2]
[388505422,1759222250953,-531.41,0.00019771,2]
[388505423,1759222250961,-500.0,0.00019771,2]
[388505424,1759222250970,-945.56,0.00019771,2]
[388505426,1759222250979,-4045.8,0.00019771,2]
[388505427,1759222250988,-500.0,0.00019771,2]
[388505428,1759222250997,-500.0,0.00019771,2]
[388505429,1759222251007,-500.0,0.00019771,2]
[388505430,1759222251016,-500.0,0.00019771,2]
[388505431,1759222251025,-2866.07,0.00019771,2]
[388505432,1759222251034,-1976.87,0.00019771,2]
[388505433,1759222251043,-5689.3,0.00019771,2]
[388505434,1759222251052,-500.0,0.00019771,2]
[388505435,1759222251061,-6038.21,0.00019771,2]
[388505436,1759222251071,-500.0,0.00019771,2]
[388505437,1759222251080,-500.0,0.00019771,2]
[388505438,1759222251089,-3440.0,0.00019771,2]
[388505439,1759222251098,-2255.75,0.00019771,2]
[388505440,1759222251107,-899.2,0.00019771,2]